bitfinex/quotes_ETHUSD_20251213
["timestamp","ask_amount","ask_price","bid_price","bid_amount"]
[1765643988422,0.4633,3107.3,3106.9,6.43728474]
[1765643989120,0.4633,3107.3,3106.9,6.91508474]
[1765643989420,0.29983946,3107.2,3106.9,6.91508474]
[1765643989595,0.4633,3107.3,3106.9,6.91508474]
[1765643989922,0.29983986,3107.2,3106.9,6.91508474]
[1765643990122,0.4633,3107.3,3106.9,6.91508474]
[1765643990323,0.29983998,3107.2,3106.9,6.91508474]
[1765643990520,0.4633,3107.3,3106.9,6.91508474]
[1765643990722,0.29986626,3107.2,3106.9,6.91508474]
[1765643991027,0.4633,3107.3,3106.9,6.91508474]
[1765643991193,0.29987402,3107.2,3106.9,6.91508474]
[1765643991533,0.4633,3107.7,3107.2,0.4887]
[1765643991704,0.508,3107.5,3107.2,0.4887]
[1765643991904,0.29991705,3107.4,3107.2,0.4887]
[1765643992226,0.29991705,3107.3,3107.2,0.4887]
[1765643993724,0.29991705,3107.3,3107.2,3.70703161]
[1765643996724,0.74511705,3107.3,3107.2,3.70703161]
[1765643996923,0.74511705,3107.3,3107.2,3.21833161]
[1765643998435,0.74511705,3107.3,3107.1,3.21843519]
[1765643998604,0.29991705,3107.2,3107.1,3.21843519]
[1765643999341,0.4943,3107.2,3107.1,3.21843519]
[1765643999837,0.9004,3107.2,3107.1,3.21843519]
[1765644001236,0.9004,3107.2,3107.0,3.21853878]
[1765644001534,0.508,3107.5,3107.0,3.21853878]
[1765644001743,0.508,3107.5,3107.0,6.43707756]
[1765644001744,0.4549,3107.3,3107.0,6.43707756]
[1765644002035,0.4452,3107.1,3107.0,3.21853878]
[1765644002813,0.508,3107.5,3107.0,6.91957756]
[1765644003019,0.30020463,3107.4,3107.0,6.91957756]
[1765644003241,0.30020463,3107.3,3107.1,0.6381]
[1765644003445,0.30020463,3107.2,3107.1,0.6381]
[1765644003739,0.34134152,3107.8,3107.1,0.6381]
[1765644003740,0.58047529,3107.8,3107.1,0.1834]
[1765644003913,0.1811,3108.9,3107.7,0.4825]
[1765644003914,0.4549,3108.2,3107.7,0.4825]
[1765644004113,0.30035605,3108.1,3107.2,1.21551776]
[1765644004317,0.30035605,3108.0,3107.3,0.4547]
[1765644004643,0.30035605,3107.9,3107.2,0.70751776]
[1765644004849,0.30035605,3107.8,3107.4,0.508]
[1765644005139,0.4549,3108.1,3107.4,0.67502178]
[1765644005342,0.30046583,3108.0,3107.5,6.43604182]
[1765644005544,0.30046583,3107.9,3107.5,6.43604182]
[1765644005836,0.9629,3108.3,3107.6,0.4547]
[1765644006039,0.30034483,3108.2,3107.6,0.9627]
[1765644006241,0.30034483,3108.1,3107.6,0.9627]
[1765644006444,0.30034483,3108.0,3107.6,0.9627]
[1765644006637,0.30034483,3107.9,3107.6,0.4547]
[1765644006845,0.4549,3108.2,3107.6,0.4547]
[1765644007044,0.30024471,3108.1,3107.7,0.508]
[1765644007247,0.30024471,3108.0,3107.8,3.21771027]
[1765644007455,0.30024471,3107.9,3107.8,3.21771027]
[1765644008250,0.75594471,3107.9,3107.7,3.72578546]
[1765644008430,0.75960631,3107.8,3107.6,3.21788499]
[1765644008628,0.75130631,3107.7,3107.6,3.21788499]
[1765644008843,0.508,3107.9,3107.8,3.21771027]
[1765644009058,0.80811886,3107.9,3107.8,3.70021027]
[1765644009457,0.30011886,3107.9,3107.8,3.70021027]
[1765644012163,0.7557861,3107.9,3107.8,3.21771027]
[1765644012538,0.7557861,3107.9,3107.5,3.72601185]
[1765644012736,0.4549,3107.8,3107.6,3.21790966]
[1765644012949,0.4167,3107.8,3107.7,3.21781381]
[1765644013329,0.4167,3108.0,3107.8,3.21763656]
[1765644013529,0.30007212,3107.9,3107.5,6.89074182]
[1765644013742,0.9255,3108.1,3107.5,6.89074182]
[1765644013940,0.30007214,3108.0,3107.5,6.89074182]
[1765644014140,0.30007214,3107.9,3107.5,6.89074182]
[1765644014341,0.9255,3108.1,3107.5,6.89074182]
[1765644014541,0.30007328,3108.0,3107.5,6.89074182]
[1765644014760,0.30007328,3107.9,3107.5,6.89074182]
[1765644015058,0.9255,3108.1,3107.5,6.89074182]
[1765644015359,0.30007924,3108.0,3107.5,6.89074182]
[1765644015524,0.30007924,3107.9,3107.5,6.89074182]
[1765644015727,0.4549,3108.0,3107.5,3.21802091]
[1765644015928,0.3000803,3107.9,3107.5,3.21802091]
[1765644016225,0.4557,3107.6,3107.5,3.21802091]
[1765644017664,0.4549,3107.8,3107.5,6.91854182]
[1765644018352,0.1853,3107.9,3107.5,6.91854182]
[1765644018556,0.30011828,3107.8,3107.5,6.91854182]
[1765644018868,0.6402,3107.9,3107.5,6.91854182]
[1765644019033,0.30011833,3107.8,3107.5,6.91854182]
[1765644019360,0.4549,3107.8,3107.5,6.91854182]
[1765644019665,0.4557,3107.6,3107.5,3.21802091]
[1765644021654,0.4557,3107.6,3107.4,3.21811303]
[1765644022532,0.4549,3107.8,3107.4,3.21811303]
[1765644022734,0.30019483,3107.7,3107.4,3.67281303]
[1765644022932,0.4549,3107.8,3107.4,6.8909375]
[1765644023169,0.30019489,3107.7,3107.4,6.8909375]
[1765644023382,0.4549,3107.8,3107.4,6.8909375]
[1765644023676,0.30021858,3107.7,3107.4,6.8909375]
[1765644023959,0.4549,3107.8,3107.4,6.8909375]
[1765644024171,0.30021861,3107.7,3107.4,6.8909375]
[1765644024361,0.6402,3107.9,3107.4,6.8909375]
[1765644024564,0.30024622,3107.8,3107.4,6.8909375]
[1765644024771,0.30024622,3107.7,3107.4,6.8909375]
[1765644024971,0.6402,3107.9,3107.4,6.8909375]
[1765644024972,0.6402,3107.9,3107.5,0.4824]
[1765644025143,0.30024965,3107.8,3107.6,0.4927]
[1765644025346,0.30024965,3107.7,3107.6,0.4927]
[1765644025568,0.4991,3108.3,3107.6,7.17696847]
[1765644025743,0.80829252,3108.2,3107.7,0.4824]
[1765644026070,0.30029252,3108.1,3107.7,0.4824]
[1765644026270,0.30029252,3108.0,3107.7,0.4824]
[1765644026437,0.30029252,3107.9,3107.7,0.4824]
[1765644026639,0.508,3108.2,3107.7,0.4824]
[1765644026966,0.30032537,3108.1,3107.7,0.4824]
[1765644027170,0.30032537,3108.0,3107.7,0.4824]
[1765644027471,0.30032537,3107.9,3107.7,0.4824]
[1765644027643,0.508,3108.2,3107.8,6.43542054]
[1765644027973,0.30032346,3108.1,3107.8,6.90022054]
[1765644028160,0.30032346,3108.0,3107.8,6.90022054]
[1765644028358,0.30032346,3107.9,3107.8,3.68251027]
[1765644029572,0.74272346,3107.9,3107.8,3.21771027]
[1765644029773,0.74272346,3107.9,3107.7,3.21781381]
[1765644029942,0.30032346,3107.8,3107.7,3.21781381]
[1765644030668,0.30032346,3107.8,3107.7,3.68261381]
[1765644032576,0.74292346,3107.8,3107.7,3.21781381]
[1765644032788,1.20482346,3107.8,3107.7,3.21781381]
[1765644034877,1.20482346,3107.8,3107.5,6.43601696]
[1765644035082,0.30032346,3107.7,3107.5,6.43601696]
[1765644035306,0.30032346,3107.6,3107.5,3.21799605]
[1765644035652,0.30032346,3107.6,3107.5,3.68279605]
[1765644035980,0.30032346,3107.6,3107.5,4.12539605]
[1765644039858,0.4624,3108.1,3107.5,8.56356931]
[1765644040059,0.30077158,3108.0,3107.5,7.82921696]
[1765644040361,0.30077158,3107.9,3107.5,7.82921696]
[1765644040571,0.30077158,3107.8,3107.5,7.34341696]
[1765644040772,0.30077158,3107.7,3107.6,0.4858]
[1765644041287,0.30077158,3107.7,3107.6,0.9506]
[1765644043188,0.30077158,3107.7,3107.6,3.68271736]
[1765644043488,0.30077158,3107.7,3107.6,4.46563906]
[1765644043687,0.78647158,3107.7,3107.6,3.21791736]
[1765644045092,0.78645376,3107.7,3107.6,3.21791736]
[1765644047666,0.30075376,3107.7,3107.6,3.21791736]
[1765644047865,0.30075376,3107.7,3107.6,4.16851736]
[1765644048165,0.30075376,3107.7,3107.6,5.3343287]
[1765644050696,0.30075376,3107.7,3107.6,5.8423287]
[1765644051397,0.30075376,3107.7,3107.6,5.3343287]
[1765644051896,0.30075376,3107.7,3107.6,5.8423287]
[1765644052277,0.30075376,3107.7,3107.6,4.16851736]
[1765644053693,0.30075376,3107.7,3107.6,4.67651736]
[1765644053997,0.30075376,3107.7,3107.6,4.16851736]
[1765644058469,0.30075376,3107.7,3107.6,4.70869653]
[1765644058669,0.30075376,3107.7,3107.6,4.67651736]
[1765644058971,0.30075376,3107.7,3107.6,4.70869653]
[1765644059298,0.30075376,3107.7,3107.6,5.88426579]
[1765644059596,0.30075376,3107.7,3107.6,5.85208662]
[1765644060098,0.30075376,3107.7,3107.6,5.88426579]
[1765644060297,0.30075376,3107.7,3107.6,4.90148662]
[1765644060506,0.75895376,3107.7,3107.6,0.508]
[1765644060715,1.71095376,3107.7,3107.4,3.829]
[1765644060994,1.71095376,3107.7,3106.5,0.4715]
[1765644060995,0.0044,3107.5,3106.8,0.76095376]
[1765644061167,0.6134,3106.9,3106.8,0.76095376]
[1765644061372,0.6134,3106.9,3106.8,3.22074597]
[1765644061580,1.39289985,3106.9,3106.8,3.22074597]
[1765644062294,1.0924,3106.9,3106.8,3.22074597]
[1765644062496,1.0924,3106.9,3106.8,0.002]
[1765644062815,1.39273731,3106.9,3106.8,0.002]
[1765644063411,1.39256474,3106.9,3106.8,0.002]
[1765644067197,1.0924,3106.9,3106.8,0.002]
[1765644067785,0.4819,3107.5,3106.8,0.9675]
[1765644068089,0.29968828,3107.4,3107.1,0.496]
[1765644068300,0.29968828,3107.3,3107.1,0.496]
[1765644068500,0.4819,3107.8,3107.2,0.4695]
[1765644068705,0.80767587,3107.7,3107.4,0.496]
[1765644068898,0.6757,3107.9,3107.4,0.496]
[1765644069084,0.29969802,3107.8,3107.5,3.21802091]
[1765644069290,0.29969802,3107.7,3107.5,6.43604182]
[1765644069517,0.508,3107.9,3107.5,7.645696]
[1765644069724,0.29971432,3107.8,3107.6,0.496]
[1765644069891,0.508,3107.9,3107.6,0.496]
[1765644070092,0.4819,3108.1,3107.6,0.496]
[1765644070422,0.80768387,3108.0,3107.6,0.496]
[1765644070593,0.29968387,3107.9,3107.6,0.496]
[1765644070794,0.9899,3108.0,3107.6,0.496]
[1765644071095,0.29968811,3107.9,3107.7,3.21781381]
[1765644071308,0.9899,3108.0,3107.7,3.21781381]
[1765644071621,0.29969356,3107.9,3107.7,3.21781381]
[1765644071916,1.06237529,3108.4,3107.9,0.496]
[1765644072121,0.4083,3108.0,3107.7,3.21781381]
[1765644072502,0.8894,3108.0,3107.7,3.21781381]
[1765644073323,0.8894,3108.0,3107.6,6.435827]
[1765644073491,0.4083,3108.0,3107.6,6.435827]
[1765644073990,0.8894,3108.0,3107.6,3.21790964]
[1765644074201,0.0048,3107.7,3107.6,3.21790964]
[1765644075425,7.22199224,3107.7,3106.8,0.002]
[1765644075593,0.4036,3106.9,3106.8,0.002]
[1765644075919,0.9163,3106.9,3106.8,0.002]
[1765644076415,1.3974,3106.9,3106.8,0.002]
[1765644087346,0.9163,3106.9,3106.8,0.002]
[1765644088318,1.69669343,3106.9,3106.8,0.002]
[1765644090422,1.86636277,3106.9,3106.8,0.002]
[1765644090745,5.66548043,3106.9,3106.8,0.002]
[1765644093344,29.48818943,3106.9,3106.8,0.002]
[1765644093641,27.18118043,3106.9,3106.8,0.002]
[1765644093833,8.21057143,3106.9,3106.8,0.002]
[1765644094424,26.27827343,3106.9,3106.8,0.002]
[1765644095051,14.82694043,3106.9,3106.8,0.002]
[1765644095424,17.19779443,3106.9,3106.8,0.002]
[1765644095854,12.96633543,3106.9,3106.8,0.002]
[1765644096356,17.92848643,3106.9,3106.8,0.002]
[1765644096539,17.60628943,3106.9,3106.8,0.002]
[1765644096851,16.82598643,3106.9,3106.8,0.002]
[1765644097058,15.23543543,3106.9,3106.8,0.002]
[1765644097557,16.57783943,3106.9,3106.8,0.002]
[1765644097929,14.35867843,3106.9,3106.8,0.002]
[1765644098253,13.70667843,3106.9,3106.8,0.002]
[1765644098762,17.87537543,3106.9,3106.8,0.002]
[1765644098958,17.55317843,3106.9,3106.8,0.002]
[1765644099338,17.55274474,3106.9,3106.8,0.002]
[1765644099957,17.55274464,3106.9,3106.8,0.002]
[1765644100757,18.85450364,3106.9,3106.8,0.002]
[1765644101062,17.75200364,3106.9,3106.8,0.002]
[1765644101641,17.74816264,3106.9,3106.8,0.002]
[1765644102638,16.68148564,3106.9,3106.8,0.002]
[1765644103666,33.80590564,3106.9,3106.8,0.002]
[1765644104875,34.43646764,3106.9,3106.8,0.002]
[1765644105436,30.34609164,3106.9,3106.8,0.002]
[1765644105637,8.09385064,3106.9,3106.8,0.002]
[1765644108063,7.10495064,3106.9,3106.8,0.002]
[1765644108269,8.09385064,3106.9,3106.8,0.002]
[1765644110395,7.68834664,3106.9,3106.8,0.002]
[1765644110572,8.09385064,3106.9,3106.8,0.002]
[1765644111973,7.18034664,3106.9,3106.8,0.002]
[1765644112270,7.68834664,3106.9,3106.8,0.002]
[1765644112665,7.20744664,3106.9,3106.8,0.002]
[1765644112968,7.72804664,3106.9,3106.8,0.002]
[1765644113171,5.18414664,3106.9,3106.8,0.002]
[1765644115046,5.64344664,3106.9,3106.8,0.002]
[1765644118875,5.18414664,3106.9,3106.8,0.002]
[1765644120099,4.26784664,3106.9,3106.8,0.002]
[1765644120247,5.0367773,3106.9,3106.8,0.002]
[1765644120447,5.9012813,3106.9,3106.8,0.002]
[1765644120668,12.7757313,3106.9,3106.8,0.002]
[1765644121657,32.1957463,3106.9,3106.8,0.002]
[1765644122659,13.6746733,3106.9,3106.8,0.002]
[1765644122986,14.1826733,3106.9,3106.8,0.002]
[1765644123189,0.405504,3106.8,3106.6,0.002]
[1765644123401,0.70916364,3106.7,3106.6,0.002]
[1765644123704,0.30365964,3106.7,3106.6,0.002]
[1765644123872,0.81165964,3106.7,3106.6,0.002]
[1765644124961,5.43985648,3106.7,3106.6,0.002]
[1765644125684,5.89915648,3106.7,3106.6,0.002]
[1765644126464,2.6803069,3106.7,3106.6,0.002]
[1765644126968,4.60638451,3106.7,3106.6,0.4784]
[1765644127374,1.38753493,3106.7,3106.6,0.4784]
[1765644128393,1.85173493,3106.7,3106.6,0.002]
[1765644128990,5.07058451,3106.7,3106.6,0.002]
[1765644129395,5.49638451,3106.7,3106.6,0.002]
[1765644129686,6.36790093,3106.7,3106.6,0.002]
[1765644131190,30.64706893,3106.7,3106.6,0.002]
[1765644131390,29.49670793,3106.7,3106.6,0.002]
[1765644131587,25.80652993,3106.7,3106.6,0.002]
[1765644132270,17.91219193,3106.7,3106.6,0.002]
[1765644133287,28.43354893,3106.7,3106.6,0.002]
[1765644134100,25.44651993,3106.7,3106.6,0.002]
[1765644134395,21.90770593,3106.7,3106.6,0.002]
[1765644134964,21.43337793,3106.7,3106.6,0.002]
[1765644135200,26.44987793,3106.7,3106.6,0.002]
[1765644135396,25.00325593,3106.7,3106.6,0.002]
[1765644136301,29.12341393,3106.7,3106.6,0.002]
[1765644137206,35.13932193,3106.7,3106.6,0.002]
[1765644137417,0.405504,3106.1,3105.6,0.002]
[1765644137581,11.29647493,3106.1,3105.6,0.002]
[1765644137784,12.88542242,3106.1,3105.6,0.002]
[1765644138703,16.10489378,3106.1,3105.6,0.002]
[1765644139204,13.92838578,3106.1,3105.6,0.4944]
[1765644142211,13.92838578,3106.1,3106.0,0.947]
[1765644142212,2.92268642,3106.1,3106.0,0.947]
[1765644142512,1.79303893,3106.1,3106.0,0.4778]
[1765644143411,0.87953493,3106.1,3106.0,0.4778]
[1765644143612,0.87953493,3106.1,3106.0,0.947]
[1765644143613,1.38853493,3106.1,3106.0,0.947]
[1765644143910,0.29905964,3106.1,3106.0,4.16657501]
[1765644149991,0.2999921,3106.1,3106.0,4.16657501]
[1765644150195,0.2999921,3106.1,3106.0,4.90560111]
[1765644151411,0.29999085,3106.1,3106.0,4.90560111]
[1765644152127,0.508,3106.5,3106.0,8.12517612]
[1765644152288,0.508,3106.7,3106.4,0.5986]
[1765644152493,0.30000595,3106.6,3106.4,0.5986]
[1765644152816,0.30000595,3106.5,3106.4,0.1214]
[1765644153313,0.30000595,3106.5,3106.4,1.0901]
[1765644153818,0.30000595,3106.5,3106.4,4.30926044]
[1765644153989,0.30000595,3106.5,3106.4,5.0621135]
[1765644154492,0.508,3107.1,3106.4,8.28127394]
[1765644154692,0.508,3107.1,3107.0,0.4772]
[1765644154893,0.80794682,3107.1,3107.0,0.4772]
[1765644155095,0.80794682,3107.1,3107.0,0.9687]
[1765644159397,0.80794682,3107.1,3107.0,0.4772]
[1765644160126,0.80794682,3107.1,3107.0,0.9687]
[1765644160299,0.80794682,3107.1,3107.0,4.18723878]
[1765644160825,0.80794682,3107.1,3107.0,0.9687]
[1765644161220,0.80794682,3107.1,3107.0,4.18723878]
[1765644162808,0.29994682,3107.1,3107.0,0.4772]
[1765644163136,0.29994682,3107.1,3107.0,0.9687]
[1765644163944,0.29994682,3107.1,3107.0,0.4772]
[1765644164842,0.29994682,3107.1,3107.0,0.9687]
[1765644165200,0.29994682,3107.1,3107.0,0.4772]
[1765644165424,0.508,3107.2,3107.0,0.9687]
[1765644165730,0.508,3107.2,3107.1,0.4772]
[1765644165946,0.80731993,3107.2,3107.1,0.4772]
[1765644166604,0.80731993,3107.2,3106.9,3.21858055]
[1765644166816,0.508,3107.2,3106.9,3.71008055]
[1765644167010,0.4995,3107.0,3106.7,0.58047529]
[1765644167214,0.4995,3107.0,3106.6,3.829]
[1765644167215,0.0039,3106.8,3106.6,3.829]
[1765644167453,0.29924732,3107.0,3106.6,3.829]
[1765644167606,0.3908,3107.1,3106.6,3.829]
[1765644167806,0.29924729,3107.0,3106.6,3.829]
[1765644168011,1.12433708,3107.1,3106.6,3.829]
[1765644168356,0.77394731,3107.0,3106.6,7.04794358]
[1765644168651,0.29924731,3106.9,3106.6,7.53944358]
[1765644168812,0.508,3106.8,3106.7,3.71034958]
[1765644169010,0.508,3106.8,3106.7,0.4915]
[1765644169244,0.508,3106.8,3106.7,0.9687]
[1765644169756,0.508,3106.8,3106.7,0.4772]
[1765644171241,1.69691115,3106.8,3106.1,4.017]
[1765644171417,0.0047,3106.6,3106.4,3.21915645]
[1765644171740,0.9827,3106.8,3106.4,3.21915645]
[1765644171922,0.29948935,3106.7,3106.4,3.21915645]
[1765644172126,0.508,3106.8,3106.4,3.21915645]
[1765644172316,0.2996181,3106.7,3106.3,3.21926407]
[1765644172516,0.508,3106.8,3106.5,0.4915]
[1765644172725,0.29961818,3106.7,3106.6,0.4772]
[1765644175556,0.71501818,3106.7,3106.4,3.21907218]
[1765644175726,0.29961818,3106.6,3106.4,3.71087218]
[1765644176026,0.4154,3106.7,3106.4,3.71087218]
[1765644176226,0.29987819,3106.6,3106.4,3.71087218]
[1765644176424,0.4154,3106.7,3106.4,3.71087218]
[1765644176645,0.29993038,3106.6,3106.4,3.71087218]
[1765644176945,0.4154,3106.7,3106.4,3.71087218]
[1765644177141,0.29993038,3106.6,3106.5,0.4519]
[1765644179152,0.29993038,3106.6,3106.5,3.67095681]
[1765644180129,0.29993038,3106.6,3106.5,4.16275681]
[1765644180651,0.29993038,3106.6,3106.5,0.4519]
[1765644180950,0.29993038,3106.6,3106.4,3.2190616]
[1765644181254,0.508,3106.8,3106.5,0.9437]
[1765644181449,0.508,3106.8,3106.7,0.4519]
[1765644181746,0.80819473,3106.8,3106.7,0.4519]
[1765644182355,1.20569473,3106.8,3106.4,3.2190616]
[1765644182531,0.30019473,3106.7,3106.4,3.7108616]
[1765644182721,0.30019473,3106.6,3106.4,3.7108616]
[1765644182927,0.30019473,3106.5,3106.4,3.7108616]
[1765644183726,0.30019473,3106.5,3106.4,4.1627616]
[1765644184234,0.30019473,3106.5,3106.4,3.6709616]
[1765644184939,0.30019473,3106.5,3106.4,3.21916044]
[1765644185251,0.30019473,3106.5,3106.4,4.16286044]
[1765644185834,0.30019473,3106.5,3106.4,4.90108299]
[1765644186545,0.58047529,3107.3,3106.4,8.12024343]
[1765644186734,0.508,3107.0,3106.5,0.4918]
[1765644187073,0.30031518,3106.9,3106.6,6.43790638]
[1765644187228,0.30031518,3106.8,3106.6,3.21895319]
[1765644187431,0.30031518,3106.7,3106.6,3.21895319]
[1765644187930,0.30031518,3106.7,3106.6,4.16265319]
[1765644189253,0.30031518,3106.7,3106.6,4.95886986]
[1765644189455,0.30031518,3106.7,3106.6,4.46706986]
[1765644189650,0.30031518,3106.7,3106.6,4.95886986]
[1765644194232,0.30031518,3106.7,3106.6,4.16265319]
[1765644195763,0.30031518,3106.7,3106.6,3.67085319]
[1765644197059,0.69781518,3106.7,3106.6,3.21895319]
[1765644197654,0.30031518,3106.7,3106.6,3.67085319]
[1765644200751,0.69881518,3106.7,3106.6,3.21895319]
[1765644200938,1.18961518,3106.7,3106.6,3.21895319]
[1765644201140,1.18961518,3106.7,3106.5,3.21905681]
[1765644201339,0.30031518,3106.6,3106.5,3.21905681]
[1765644201766,0.69971518,3106.6,3106.4,3.72715287]
[1765644202062,0.67741114,3106.5,3106.4,3.21915287]
[1765644202266,1.16641114,3106.5,3106.3,3.21922553]
[1765644202562,0.8845,3106.5,3106.4,3.21916044]
[1765644203258,0.3955,3106.5,3106.3,3.21926407]
[1765644206369,0.4937,3106.4,3106.2,0.69971518]
[1765644206539,0.3917,3106.3,3106.1,3.21939662]
[1765644207051,0.0199,3106.2,3106.1,3.21939662]
[1765644207244,0.4775,3106.5,3106.2,3.21936771]
[1765644209770,0.4077,3106.3,3106.2,3.21936771]
[1765644210844,0.8845,3106.3,3106.2,3.21936771]
[1765644211552,0.4077,3106.3,3106.2,3.21936771]
[1765644212560,0.4768,3106.5,3106.2,3.21936771]
[1765644213477,0.4084,3106.3,3106.2,3.21936771]
[1765644213976,0.70869272,3106.3,3106.2,3.21936771]
[1765644214578,0.30029272,3106.3,3106.2,3.70806771]
[1765644214780,0.30029272,3106.3,3106.2,4.58343882]
[1765644217282,0.70799272,3106.3,3106.2,4.09473882]
[1765644217477,0.70799272,3106.3,3106.2,3.21936771]
[1765644218585,0.70799272,3106.3,3106.0,4.18854644]
[1765644218586,0.70799272,3106.3,3106.1,3.21943425]
[1765644218774,0.4077,3106.3,3106.1,3.21943425]
[1765644220263,0.30502081,3106.2,3106.0,0.96898238]
[1765644220462,0.30502081,3106.2,3106.0,0.002]
[1765644220463,0.403,3106.1,3106.0,0.002]
[1765644220663,1.18071748,3106.1,3106.0,0.002]
[1765644222362,4.89099961,3106.1,3106.0,0.002]
[1765644222576,1.67152825,3106.1,3106.0,0.002]
[1765644222891,1.18071748,3106.1,3106.0,0.002]
[1765644223273,1.18056691,3106.1,3106.0,0.002]
[1765644224094,4.40003827,3106.1,3106.0,0.002]
[1765644226170,4.98051356,3106.1,3106.0,0.002]
[1765644242386,4.97981933,3106.1,3106.0,0.002]
[1765644243028,5.85053135,3106.1,3106.0,0.002]
[1765644243580,1.75055999,3106.1,3106.0,0.4592]
[1765644243788,4.57201933,3106.1,3106.0,0.002]
[1765644244012,4.09931933,3106.1,3106.0,0.4592]
[1765644244308,1.38784797,3106.1,3106.0,0.4592]
[1765644244525,5.49251933,3106.1,3106.0,0.002]
[1765644249418,5.19314665,3106.1,3106.0,0.002]
[1765644249622,6.33455157,3106.1,3106.0,0.002]
[1765644250021,1.35333059,3106.1,3106.0,0.002]
[1765644250224,5.49330195,3106.1,3106.0,0.002]
[1765644252021,1.86133059,3106.1,3106.0,0.002]
[1765644252593,0.88063059,3106.1,3106.0,0.4592]
[1765644252809,1.38863059,3106.1,3106.0,0.9267]
[1765644253821,1.38863059,3106.1,3106.0,0.4592]
[1765644255108,1.38863059,3106.1,3106.0,0.9267]
[1765644255923,4.60810195,3106.1,3106.0,0.9267]
[1765644256330,5.01880195,3106.1,3106.0,0.002]
[1765644256925,5.49270195,3106.1,3106.0,0.002]
[1765644258414,5.01880195,3106.1,3106.0,0.002]
[1765644259337,5.49270195,3106.1,3106.0,0.002]
[1765644261537,5.01880195,3106.1,3106.0,0.002]
[1765644263017,5.49270195,3106.1,3106.0,0.002]
[1765644264049,5.01880195,3106.1,3106.0,0.002]
[1765644269731,5.48670195,3106.1,3106.0,0.002]
[1765644271352,5.01880195,3106.1,3106.0,0.002]
[1765644271554,4.60810195,3106.1,3106.0,0.002]
[1765644272826,4.60810195,3106.1,3106.0,0.4793]
[1765644272827,1.38863059,3106.1,3106.0,0.4793]
[1765644273759,1.38863059,3106.1,3106.0,0.9387]
[1765644274259,0.88063059,3106.1,3106.0,0.9387]
[1765644274448,1.38863059,3106.1,3106.0,0.9387]
[1765644276159,4.60810195,3106.1,3106.0,0.9387]
[1765644276757,4.60810195,3106.1,3106.0,0.4793]
[1765644277254,4.60810195,3106.1,3106.0,0.002]
[1765644277456,5.02530195,3106.1,3106.0,0.002]
[1765644278562,1.80583059,3106.1,3106.0,0.002]
[1765644278867,1.38863059,3106.1,3106.0,0.002]
[1765644279162,1.38863059,3106.1,3106.0,0.4793]
[1765644279962,1.38863059,3106.1,3106.0,0.9387]
[1765644284466,4.60810195,3106.1,3106.0,0.9387]
[1765644284666,4.60810195,3106.1,3106.0,0.4793]
[1765644284868,4.60810195,3106.1,3106.0,0.9387]
[1765644286160,5.02530195,3106.1,3106.0,0.002]
[1765644286369,6.31715959,3106.1,3106.0,0.002]
[1765644287069,31.74093359,3106.1,3106.0,0.002]
[1765644287270,25.84678929,3106.0,3105.9,0.002]
[1765644287579,26.61954459,3106.0,3105.9,0.002]
[1765644288085,30.12465159,3106.0,3105.9,0.002]
[1765644288274,35.845483,3106.0,3105.9,0.002]
[1765644291274,0.3001553,3106.0,3105.9,0.9387]
[1765644295585,0.3001553,3106.0,3105.9,0.002]
[1765644296090,0.3001553,3106.0,3105.9,0.4584]
[1765644299650,0.88063059,3106.0,3105.9,0.4584]
[1765644300761,4.9848056,3106.0,3105.9,0.002]
[1765644301087,2.25985857,3106.0,3105.9,0.4584]
[1765644301381,0.3001553,3106.0,3105.9,0.9404]
[1765644301553,0.8081553,3106.0,3105.9,0.9404]
[1765644304589,1.38863059,3106.0,3105.9,0.9404]
[1765644305290,0.8081553,3106.0,3105.9,0.9404]
[1765644305979,1.2146553,3106.0,3105.9,0.002]
[1765644306171,5.18398113,3106.0,3105.9,0.002]
[1765644306372,0.98597929,3105.9,3105.8,0.002]
[1765644306571,30.33335159,3105.9,3105.8,0.002]
[1765644307193,30.46234535,3105.9,3105.8,0.002]
[1765644308002,21.44647335,3105.9,3105.8,0.002]
[1765644308217,27.47164126,3105.9,3105.8,0.002]
[1765644308386,36.99551326,3105.9,3105.8,0.002]
[1765644309278,36.99551326,3105.9,3105.6,0.002]
[1765644309279,29.35189629,3105.7,3105.6,0.002]
[1765644309479,29.66075159,3105.7,3105.6,0.002]
[1765644309782,30.53079136,3105.7,3105.6,0.002]
[1765644310498,33.75067737,3105.7,3105.6,0.002]
[1765644311307,33.7502048,3105.7,3105.6,0.002]
[1765644312687,34.39469725,3105.7,3105.6,0.002]
[1765644312887,34.39440226,3105.7,3105.6,0.002]
[1765644313478,33.74990981,3105.7,3105.6,0.002]
[1765644313812,13.72203481,3105.7,3105.6,0.002]
[1765644314511,29.20796081,3105.7,3105.6,0.002]
[1765644314714,28.1807303,3105.7,3105.6,0.002]
[1765644315320,6.8356953,3105.7,3105.6,0.4584]
[1765644315478,1.40011029,3105.7,3105.6,0.4584]
[1765644315672,1.51687052,3105.7,3105.6,0.4584]
[1765644315876,1.51687052,3105.7,3105.6,0.9404]
[1765644316112,1.00887052,3105.7,3105.6,0.9404]
[1765644316320,0.80738774,3105.7,3105.6,0.9404]
[1765644316916,0.508,3105.7,3105.6,4.57683143]
[1765644319015,0.508,3105.7,3105.6,1.35684174]
[1765644319311,0.508,3105.7,3105.6,4.57683143]
[1765644320222,0.80723189,3106.0,3105.6,4.57683143]
[1765644320426,0.29923189,3105.9,3105.7,0.482]
[1765644320648,0.29923189,3105.8,3105.7,0.482]
[1765644321018,0.29923189,3105.8,3105.7,0.9384]
[1765644325122,0.29923189,3105.8,3105.7,4.15828601]
[1765644325322,0.29923189,3105.8,3105.7,4.9932388]
[1765644325711,0.29923189,3106.5,3105.7,4.9932388]
[1765644325910,0.29923189,3106.4,3105.8,0.4849]
[1765644326144,0.508,3106.7,3106.3,0.5522]
[1765644326340,0.508,3106.7,3106.6,0.4534]
[1765644326546,1.38780491,3106.7,3106.6,0.4534]
[1765644326919,0.80732962,3106.7,3106.6,0.4534]
[1765644327120,0.80732962,3106.7,3106.6,0.9383]
[1765644327527,0.508,3107.0,3106.6,4.15725319]